Workbook

Sheet Feuil1
A4: PLANNING ÉQUIPE | C4: 2023 | K4: v2
A5: Mercredis
B6: Marion (prim) | C6: David Saïd (mat) | D6: Louanne (prim) | E6: Aurélie (mat) | F6: Bruçula (prim) | G6: Peggy (mat) | H6: Rémi (prim) | I6: Elisa (mat) | J6: Autre | K6: Note
A8: Janvier -> Février
A9: 2023-01-04 | B9: Marsac 9h-18h | C9: Balzac 11h45-19h | D9: Asnières 11h45-18h | E9: Balzac 11h45-18h30 | F9: Vindelle 11h30-18h | G9: Marsac 7h30-17h45 | H9: Balzac 11h45-18h30 | I9: Balzac 11h45-19h
A10: =A9+7 -> 2023-01-11 | B10: Marsac 7h30-17h45 | C10: Vindelle 11h30-18h | D10: Asnières 11h45-18h | E10: Balzac 11h45-18h30 | F10: Marsac 9h-18h | G10: Balzac 11h45-19h | H10: Balzac 11h45-19h | I10: Balzac 11h45-18h30
A11: =A10+7 -> 2023-01-18 | B11: Balzac 11h45-18h30 | C11: Balzac 11h45-19h | D11: Marsac 9h-18h | E11: Marsac 7h30-17h45 | F11: Balzac 11h45-19h | G11: Asnières 11h45-18h | H11: Vindelle 11h30-18h | I11: Balzac 11h45-18h30
A12: 2023-01-25 | B12: Balzac 11h45-18h30 | C12: Asnières 11h45-18h | D12: Balzac 11h45-19h | E12: Balzac 11h45-19h | F12: Marsac 7h30-17h45 | G12: Marsac 9h-18h | H12: Balzac 11h45-18h30 | I12: Vindelle 11h30-18h
A13: 2023-02-01 | B13: Asnières 11h45-18h | C13: Balzac 11h45-18h30 | D13: Marsac 7h30-17h45 | E13: Balzac 11h45-18h30 | F13: Marsac 9h-18h | G13: Balzac 11h45-19h | H13: Balzac 11h45-19h | I13: Asnières 11h45-18h
A14: 2023-02-08 | B14: Balzac 11h45-19h | C14: Balzac 11h45-18h30 | D14: Vindelle 11h30-18h | E14: Marsac 9h-18h | F14: Balzac 11h45-18h30 | G14: Marsac 7h30-17h45 | H14: Asnières 11h45-18h | I14: Balzac 11h45-19h
A15: 2023-02-15 | B15: Marsac 7h30-17h45 | C15: Balzac 11h45-19h | D15: Marsac 9h-18h | E15: Balzac 11h45-18h30 | F15: Vindelle 11h30-18h | G15: Asnières 11h45-18h | H15: Balzac 11h45-18h30 | I15: Balzac 11h45-19h
A17: Mars -> Avril
A18: =A15+21 -> 2023-03-08 | B18: Marsac 9h-18h | C18: Balzac 11h45-18h30 | D18: Marsac 7h30-17h45 | F18: Balzac 11h45-19h | G18: Balzac 11h45-19h | H18: Asnières 11h45-18h | I18: Vindelle 11h30-18h
A19: =A18+7 -> 2023-03-15 | B19: Asnières 11h45-18h | C19: Balzac 11h45-19h | D19: Balzac 11h45-19h | E19: Marsac 9h-18h | F19: Marsac 7h30-17h45 | G19: Balzac 11h45-18h30 | H19: Asnières 11h45-18h | I19: Balzac 11h45-18h30
A20: =A19+7 -> 2023-03-22 | B20: Balzac 11h45-19h | C20: Balzac 11h45-18h30 | D20: Vindelle 11h30-18h | E20: Marsac 7h30-17h45 | F20: Asnières 11h45-18h | G20: Marsac 9h-18h | H20: Balzac 11h45-19h | I20: Balzac 11h45-18h30
A21: 2023-03-29 | B21: Marsac 9h-18h | C21: Balzac 11h45-18h30 | D21: Vindelle 11h30-18h | E21: Balzac 11h45-19h | F21: Asnières 11h45-18h | G21: Marsac 7h30-17h45 | H21: Balzac 11h45-18h30 | I21: Balzac 11h45-19h
A22: 2023-04-05 | B22: Balzac 11h45-19h | C22: Balzac 11h45-19h | D22: Marsac 9h-18h | E22: Marsac 7h30-17h45 | F22: Balzac 11h45-18h30 | G22: Asnières 11h45-18h | H22: Asnières 11h45-18h | I22: Balzac 11h45-18h30
A23: =A22+7 -> 2023-04-12 | B23: Marsac 7h30-17h45 | C23: Vindelle 11h30-18h | D23: Balzac 11h45-19h | E23: Balzac 11h45-19h | F23: Marsac 9h-18h | G23: Balzac 11h45-18h30 | H23: Balzac 11h45-18h30 | I23: Asnières 11h45-18h
A25: Mai -> Juillet
A26: =A23+21 -> 2023-05-03 | B26: Asnières 11h45-18h | C26: Balzac 11h45-18h30 | D26: Marsac 9h-18h | E26: Balzac 11h45-19h | F26: Balzac 11h45-19h | G26: Marsac 7h30-17h45 | H26: Balzac 11h45-18h30
A27: =A26+7 -> 2023-05-10 | B27: Asnières 11h45-18h | C27: Balzac 11h45-18h30 | D27: Balzac 11h45-19h | E27: Marsac 9h-18h | F27: Marsac 7h30-17h45 | G27: Balzac 11h45-19h | H27: Vindelle 11h30-18h | I27: Balzac 11h45-18h30
A28: =A27+7 -> 2023-05-17 | B28: Marsac 9h-18h | C28: Balzac 11h45-18h30 | D28: Asnières 11h45-18h | E28: Balzac 11h45-19h | F28: Balzac 11h45-18h30 | G28: Marsac 7h30-17h45 | H28: Balzac 11h45-19h | I28: Vindelle 11h30-18h
A29: 2023-05-24 | B29: Marsac 7h30-17h45 | C29: Asnières 11h45-18h | D29: Vindelle 11h30-18h | E29: Balzac 11h45-19h | F29: Marsac 9h-18h | G29: Balzac 11h45-18h30 | H29: Balzac 11h45-18h30 | I29: Balzac 11h45-19h
A30: 2023-05-31 | B30: Balzac 11h45-19h | C30: Balzac 11h45-19h | D30: Marsac 9h-18h | E30: Marsac 7h30-17h45 | F30: Asnières 11h45-18h | G30: Balzac 11h45-18h30 | H30: Balzac 11h45-18h30 | I30: Vindelle 11h30-18h
A31: 2023-06-07 | B31: Balzac 11h45-18h30 | C31: Balzac 11h45-18h30 | D31: Balzac 11h45-19h | F31: Marsac 7h30-17h45 | G31: Marsac 9h-18h | H31: Asnières 11h45-18h | I31: Vindelle 11h30-18h
A33: Septembre -> Octobre
A34: =A31+21 -> 2023-06-28 | B34: Balzac 11h45-18h30 | C34: Balzac 11h45-19h | D34: Marsac 7h30-17h45 | E34: Asnières 11h45-18h | F34: Marsac 9h-18h | G34: Balzac 11h45-19h | H34: Balzac 11h45-18h30 | I34: Vindelle 11h30-18h
A35: 2023-07-05 | B35: Vindelle 11h30-18h | C35: Balzac 11h45-19h | D35: Asnières 11h45-18h | E35: Marsac 9h-18h | F35: Balzac 11h45-18h30 | G35: Marsac 7h30-17h45 | H35: Balzac 11h45-19h | I35: Balzac 11h45-18h30
A36: 2023-07-12 | B36: Vindelle 11h30-18h | C36: Asnières 11h45-18h | D36: Marsac 9h-18h | E36: Balzac 11h45-19h | F36: Marsac 7h30-17h45 | G36: Balzac 11h45-18h | H36: Balzac 11h45-18h30 | I36: Balzac 11h45-18h30
A37: 2023-07-19 | B37: Marsac 9h-18h | C37: Balzac 11h45-18h30 | D37: Vindelle 11h30-18h | E37: Balzac 11h45-19h | F37: Asnières 11h45-18h | G37: Marsac 7h30-17h45 | H37: Balzac 11h45-19h | I37: Balzac 11h45-18h30
A38: 2023-07-26 | B38: Marsac 7h30-17h45 | C38: Balzac 11h45-19h | D38: Balzac 11h45-19h | E38: Marsac 9h-18h | F38: Vindelle 11h30-18h | G38: Balzac 11h45-18h30 | H38: Balzac 11h45-18h30 | I38: Asnières 11h45-18h
A39: 2023-08-02 | B39: Balzac 11h45-19h | C39: Asnières 11h45-18h | D39: Marsac 7h30-17h45 | E39: Vindelle 11h30-18h | G39: Marsac 9h-18h | H39: Balzac 11h45-18h30 | I39: Balzac 11h45-19h
A40: 2023-08-09 | B40: Marsac 9h-18h | C40: Balzac 11h45-18h30 | D40: Asnières 11h45-18h | E40: Marsac 7h30-17h45 | F40: Vindelle 11h30-18h | H40: Balzac 11h45-19h | I40: Balzac 11h45-19h | K40: Peggy stage bafa
A42: Novembre -> Décembre
A43: =A40+21 -> 2023-08-30 | B43: Marsac 7h30-17h45 | C43: Vindelle 11h30-18h | D43: Balzac 11h45-19h | E43: Balzac 11h45-19h | F43: Marsac 9h-18h | G43: Balzac 11h45-18h30 | I43: Asnières 11h45-18h
A44: =A43+7 -> 2023-09-06 | B44: Asnières 11h45-18h | C44: Balzac 11h45-19h | D44: Marsac 7h30-17h45 | E44: Marsac 9h-18h | F44: Balzac 11h45-18h30 | G44: Balzac 11h45-19h | I44: Vindelle 11h30-18h
A45: =A44+7 -> 2023-09-13 | B45: Balzac 11h45-19h | C45: Balzac 11h45-19h | D45: Marsac 7h30-17h45 | E45: Balzac 11h45-18h30 | F45: Marsac 9h-18h | G45: Vindelle 11h30-18h | I45: Asnières 11h45-18h
A46: =A45+7 -> 2023-09-20 | B46: Vindelle 11h30-19h | C46: Asnières 11h45-18h | F46: Marsac 7h30-17h45 | G46: Marsac 9h-18h | H46: Balzac 11h45-12h30 | I46: Balzac 11h45-19h | K46: Loan 12h30-18h30
A47: 2023-09-27 | B47: Marsac 9h-18h | C47: Vindelle 11h30-18h | D47: Asnières 11h45-19h | E47: Marsac 7h30-17h45 | F47: Balzac 11h45-19h | G47: Balzac 11h45-18h30 | I47: Balzac 11h45-18h30 | K47: Fermeture Prim Louanne
A48: 2023-10-04 | C48: Balzac 11h45-18h30 | D48: Marsac 9h-18h | E48: Balzac 11h45-19h | F48: Asnières 11h45-18h | G48: Marsac 7h30-17h45 | H48: Balzac 11h45-19h | I48: Vindelle 11h30-18h
A49: 2023-10-11 | B49: Marsac 7h30-17h45 | C49: Asnières 11h45-19h | D49: Balzac 11h45-18h30 | E49: Marsac 9h-18h | F49: Balzac 11h45-19h | H49: Vindelle 11h30-18h | I49: Balzac 11h45-18h30 | K49: Fermeture Mat Saïd
A50: 2023-10-18 | B50: Balzac 11h45-18h30 | C50: Balzac 11h45-18h30 | D50: Marsac 9h-18h | E50: Vindelle 11h30-18h | F50: Marsac 7h30-17h45 | G50: Asnières 11h45-18h | H50: Balzac 11h45-19h | I50: Balzac 11h45-19h
A51: 2023-10-25 | B51: Balzac 11h45-19h | C51: Balzac 11h45-19h | D51: Asnières 11h45-18h | E51: Marsac 7h30-17h45 | F51: Balzac 11h45-18h30 | G51: Marsac 9h-18h | H51: Vindelle 11h30-18h | I51: Balzac 11h45-18h30
A52: =A51+7 -> 2023-11-01 | B52: Marsac 9h-18h | C52: Asnières 11h45-18h | D52: Marsac 7h30-17h45 | E52: Balzac 11h45-19h | F52: Vindelle 11h30-18h | G52: Balzac 11h45-19h | H52: Balzac 11h45-18h30 | I52: Balzac 11h45-18h30
A54: =Feuil2!A1 -> Asnières 11h45-18h | B54: =COUNTIF(Feuil1!B$9:B$52,$A$54) -> 5 | C54: =COUNTIF(Feuil1!C$9:C$52,$A$54) -> 6 | D54: =COUNTIF(Feuil1!D$9:D$52,$A$54) -> 6 | E54: =COUNTIF(Feuil1!E$9:E$52,$A$54) -> 1 | F54: =COUNTIF(Feuil1!F$9:F$52,$A$54) -> 5 | G54: =COUNTIF(Feuil1!G$9:G$52,$A$54) -> 4 | H54: =COUNTIF(Feuil1!H$9:H$52,$A$54) -> 5 | I54: =COUNTIF(Feuil1!I$9:I$52,$A$54) -> 5 | J54: =COUNTIF(Feuil1!J$9:J$52,$A$54) -> 0
A55: =Feuil2!A7 -> Asnières 11h45-19h | B55: =COUNTIF(Feuil1!B$9:B$52,$A$55) -> 0 | C55: =COUNTIF(Feuil1!C$9:C$52,$A$55) -> 1 | D55: =COUNTIF(Feuil1!D$9:D$52,$A$55) -> 1 | E55: =COUNTIF(Feuil1!E$9:E$52,$A$55) -> 0 | F55: =COUNTIF(Feuil1!F$9:F$52,$A$55) -> 0 | G55: =COUNTIF(Feuil1!G$9:G$52,$A$55) -> 0 | H55: =COUNTIF(Feuil1!H$9:H$52,$A$55) -> 0 | I55: =COUNTIF(Feuil1!I$9:I$52,$A$55) -> 0
A56: =Feuil2!A2 -> Balzac 11h45-19h | B56: =COUNTIF(Feuil1!B$9:B$52,$A$56) -> 7 | C56: =COUNTIF(Feuil1!C$9:C$52,$A$56) -> 12 | D56: =COUNTIF(Feuil1!D$9:D$52,$A$56) -> 7 | E56: =COUNTIF(Feuil1!E$9:E$52,$A$56) -> 11 | F56: =COUNTIF(Feuil1!F$9:F$52,$A$56) -> 5 | G56: =COUNTIF(Feuil1!G$9:G$52,$A$56) -> 7 | H56: =COUNTIF(Feuil1!H$9:H$52,$A$56) -> 9 | I56: =COUNTIF(Feuil1!I$9:I$52,$A$56) -> 9 | J56: =COUNTIF(Feuil1!J$9:J$52,$A$56) -> 0
A57: =Feuil2!A3 -> Balzac 11h45-18h30 | B57: =COUNTIF(Feuil1!B$9:B$52,$A$57) -> 5 | C57: =COUNTIF(Feuil1!C$9:C$52,$A$57) -> 13 | D57: =COUNTIF(Feuil1!D$9:D$52,$A$57) -> 1 | E57: =COUNTIF(Feuil1!E$9:E$52,$A$57) -> 5 | F57: =COUNTIF(Feuil1!F$9:F$52,$A$57) -> 6 | G57: =COUNTIF(Feuil1!G$9:G$52,$A$57) -> 7 | H57: =COUNTIF(Feuil1!H$9:H$52,$A$57) -> 13 | I57: =COUNTIF(Feuil1!I$9:I$52,$A$57) -> 13 | J57: =COUNTIF(Feuil1!J$9:J$52,$A$57) -> 0
A58: =Feuil2!A4 -> Marsac 7h30-17h45 | B58: =COUNTIF(Feuil1!B$9:B$52,$A$58) -> 7 | C58: =COUNTIF(Feuil1!C$9:C$52,$A$58) -> 0 | D58: =COUNTIF(Feuil1!D$9:D$52,$A$58) -> 7 | E58: =COUNTIF(Feuil1!E$9:E$52,$A$58) -> 7 | F58: =COUNTIF(Feuil1!F$9:F$52,$A$58) -> 7 | G58: =COUNTIF(Feuil1!G$9:G$52,$A$58) -> 8 | H58: =COUNTIF(Feuil1!H$9:H$52,$A$58) -> 0 | I58: =COUNTIF(Feuil1!I$9:I$52,$A$58) -> 0 | J58: =COUNTIF(Feuil1!J$9:J$52,$A$58) -> 0
A59: =Feuil2!A5 -> Marsac 9h-18h | B59: =COUNTIF(Feuil1!B$9:B$52,$A$59) -> 8 | C59: =COUNTIF(Feuil1!C$9:C$52,$A$59) -> 0 | D59: =COUNTIF(Feuil1!D$9:D$52,$A$59) -> 8 | E59: =COUNTIF(Feuil1!E$9:E$52,$A$59) -> 7 | F59: =COUNTIF(Feuil1!F$9:F$52,$A$59) -> 7 | G59: =COUNTIF(Feuil1!G$9:G$52,$A$59) -> 6 | H59: =COUNTIF(Feuil1!H$9:H$52,$A$59) -> 0 | I59: =COUNTIF(Feuil1!I$9:I$52,$A$59) -> 0 | J59: =COUNTIF(Feuil1!J$9:J$52,$A$59) -> 0
A60: =Feuil2!A6 -> Vindelle 11h30-18h | B60: =COUNTIF(Feuil1!B$9:B$52,$A$60) -> 2 | C60: =COUNTIF(Feuil1!C$9:C$52,$A$60) -> 4 | D60: =COUNTIF(Feuil1!D$9:D$52,$A$60) -> 5 | E60: =COUNTIF(Feuil1!E$9:E$52,$A$60) -> 2 | F60: =COUNTIF(Feuil1!F$9:F$52,$A$60) -> 5 | G60: =COUNTIF(Feuil1!G$9:G$52,$A$60) -> 1 | H60: =COUNTIF(Feuil1!H$9:H$52,$A$60) -> 4 | I60: =COUNTIF(Feuil1!I$9:I$52,$A$60) -> 8 | J60: =COUNTIF(Feuil1!J$9:J$52,$A$60) -> 0
A61: =Feuil2!A8 -> Balzac 11h45-18h
A62: TOT | B62: =SUM(B54:B60) -> 34 | C62: 36 | D62: 35 | E62: 33 | F62: 35 | G62: 33 | H62: 31 | I62: 35 | J62: 0
B64: =B54*Feuil2!$D$1 -> 1.302083333 | C64: =C54*Feuil2!$D$1 -> 1.5625 | D64: =D54*Feuil2!$D$1 -> 1.5625 | E64: =E54*Feuil2!$D$1 -> 0.2604166667 | F64: =F54*Feuil2!$D$1 -> 1.302083333 | G64: =G54*Feuil2!$D$1 -> 1.041666667 | H64: =H54*Feuil2!$D$1 -> 1.302083333 | I64: =I54*Feuil2!$D$1 -> 1.302083333 | J64: =J54*Feuil2!$D$1 -> 0
B65: =B56*Feuil2!$D$2 -> 2.114583333 | C65: =C56*Feuil2!$D$2 -> 3.625 | D65: =D56*Feuil2!$D$2 -> 2.114583333 | E65: =E56*Feuil2!$D$2 -> 3.322916667 | F65: =F56*Feuil2!$D$2 -> 1.510416667 | G65: =G56*Feuil2!$D$2 -> 2.114583333 | H65: =H56*Feuil2!$D$2 -> 2.71875 | I65: =I56*Feuil2!$D$2 -> 2.71875 | J65: =J56*Feuil2!$D$2 -> 0
B66: =B57*Feuil2!$D$3 -> 1.40625 | C66: =C57*Feuil2!$D$3 -> 3.65625 | D66: =D57*Feuil2!$D$3 -> 0.28125 | E66: =E57*Feuil2!$D$3 -> 1.40625 | F66: =F57*Feuil2!$D$3 -> 1.6875 | G66: =G57*Feuil2!$D$3 -> 1.96875 | H66: =H57*Feuil2!$D$3 -> 3.65625 | I66: =I57*Feuil2!$D$3 -> 3.65625 | J66: =J57*Feuil2!$D$3 -> 0
B67: =B58*Feuil2!$D$4 -> 2.989583333 | C67: =C58*Feuil2!$D$4 -> 0 | D67: =D58*Feuil2!$D$4 -> 2.989583333 | E67: =E58*Feuil2!$D$4 -> 2.989583333 | F67: =F58*Feuil2!$D$4 -> 2.989583333 | G67: =G58*Feuil2!$D$4 -> 3.416666667 | H67: =H58*Feuil2!$D$4 -> 0 | I67: =I58*Feuil2!$D$4 -> 0 | J67: =J58*Feuil2!$D$4 -> 0
B68: =B59*Feuil2!$D$5 -> 3 | C68: =C59*Feuil2!$D$5 -> 0 | D68: =D59*Feuil2!$D$5 -> 3 | E68: =E59*Feuil2!$D$5 -> 2.625 | F68: =F59*Feuil2!$D$5 -> 2.625 | G68: =G59*Feuil2!$D$5 -> 2.25 | H68: =H59*Feuil2!$D$5 -> 0 | I68: =I59*Feuil2!$D$5 -> 0 | J68: =J59*Feuil2!$D$5 -> 0
B69: =B60*Feuil2!$D$6 -> 0.5416666667 | C69: =C60*Feuil2!$D$6 -> 1.083333333 | D69: =D60*Feuil2!$D$6 -> 1.354166667 | E69: =E60*Feuil2!$D$6 -> 0.5416666667 | F69: =F60*Feuil2!$D$6 -> 1.354166667 | G69: =G60*Feuil2!$D$6 -> 0.2708333333 | H69: =H60*Feuil2!$D$6 -> 1.083333333 | I69: =I60*Feuil2!$D$6 -> 2.166666667 | J69: =J60*Feuil2!$D$6 -> 0
B70: =SUM(B64:B69) -> 11.35416667 | C70: =SUM(C64:C69) -> 9.927083333 | D70: 11.30208333 | E70: 11.14583333 | F70: 11.46875 | G70: =SUM(G64:G69) -> 11.0625 | H70: 8.760416667 | I70: 9.84375 | J70: 0

Sheet Feuil2
A1: Asnières 11h45-18h | B1: 0.4895833333 | C1: 0.75 | D1: =C1-B1 -> 0.2604166667
A2: Balzac 11h45-19h | B2: 0.4895833333 | C2: 0.7916666667 | D2: =C2-B2 -> 0.3020833333
A3: Balzac 11h45-18h30 | B3: 0.4895833333 | C3: 0.7708333333 | D3: 0.28125
A4: Marsac 7h30-17h45 | B4: 0.3125 | C4: 0.7395833333 | D4: 0.4270833333
A5: Marsac 9h-18h | B5: 0.375 | C5: 0.75 | D5: 0.375
A6: Vindelle 11h30-18h | B6: 0.4791666667 | C6: 0.75 | D6: 0.2708333333
A7: Asnières 11h45-19h
A8: Balzac 11h45-18h
A9: Vindelle 11h30-19h

Sheet Jours fériés
A1: 1er Janvier | B1: =DATE(Feuil1!C4,1,1) -> 2023-01-01
A2: Pâques | B2: =ROUND(DATE(Feuil1!C4,4,MOD(234-11*MOD(Feuil1!C4,19),30))/7,)*7-5 -> 2023-04-10
A3: Lundi de Pâques | B3: =SUM(B2+1) -> 2023-04-11
A4: 1er Mai | B4: =DATE(Feuil1!C4,5,1) -> 2023-05-01
A5: 8 Mai Victoire 1945 | B5: =DATE(Feuil1!C4,5,8) -> 2023-05-08
A6: Jeudi de l'Ascension | B6: =B2+39 -> 2023-05-19
A7: Pentecôte | B7: =B2+49 -> 2023-05-29
A8: Lundi de Pentecôte | B8: =SUM(B7+1) -> 2023-05-30
A9: 14 Juillet Fête Nationale France | B9: =DATE(Feuil1!C4,7,14) -> 2023-07-14
A10: 15 Août Assomption | B10: =DATE(Feuil1!C4,8,15) -> 2023-08-15
A11: 1 Novembre Toussaint | B11: =DATE(Feuil1!C4,11,1) -> 2023-11-01
A12: 11 Novembre Armistice 1918 | B12: =DATE(Feuil1!C4,11,11) -> 2023-11-11
A13: 25 décembre Noël | B13: =DATE(Feuil1!C4,12,25) -> 2023-12-25
